Cogmind - Beta 13 @@@ ROGUE MODE // 2024.04.17 @ 14:37:23 Player: RD-BNK(r) Result: Destroyed by DAS Turret with DAS Cannon Performance ------------- Evolutions (1) 500 Regions Visited (5) 1000 Robots Destroyed (73) 365 Value Destroyed (1386) 1386 Prototype IDs (3) 60 Alien Tech Used (0) 0 Bonus (30) 30 TOTAL SCORE: 3341 Bonus ------- High Alert Combat Kills 16 Follower Combat Kills 14 Cogmind --------- Core Integrity 0/400 Matter 33/300 Energy 100/100 System Corruption 8% Temperature Cool (0) Movement Core (50) Location -9/Exiles Parts ------- > --- POWER (1) -------- (None) > --- PROPULSION (4) --- (None) > --- UTILITY (2) ------ (None) > --- WEAPON (2) ------- (None) > --- INVENTORY (5) ---- Ion Engine Improved Flight Unit Improved Flight Unit Improved Flight Unit Heat Sink Peak State ------------ > --- POWER ------------ Heavy Ion Engine > --- PROPULSION ------- Light Treads Improved Treads Improved Treads Improved Treads > --- UTILITY ---------- Huge Storage Unit Hardened Light Armor Plating > --- WEAPON ----------- Heavy Assault Rifle Shotgun > --- INVENTORY -------- Ion Engine Light Ion Engine Light Ion Engine Improved Ion Engine Light Nuclear Core Light Treads Light Treads Wheel Improved Flight Unit Improved Flight Unit Improved Flight Unit Improved Flight Unit Improved Flight Unit Heat Sink Small Storage Unit Medium Storage Unit Signal Interpreter Hardened Light Armor Plating Beamcaster Heavy Assault Rifle Heavy Assault Rifle Grenade Launcher Datajack Flail [Rating: 21] Favorites ----------- Power Light Ion Engine Engine Light Ion Engine Propulsion Light Treads Treads Light Treads Leg Aluminum Leg Utility Huge Storage Unit Device Structural Scanner Storage Huge Storage Unit Protection Hardened Light Armor Plating Weapon Light Assault Rifle Energy Gun Beamcaster Ballistic Gun Light Assault Rifle Launcher Grenade Launcher Impact Weapon Flail Build | -11 -10 -10 -9 -9 -9 ------- Run | Yrd Mat Min Mat Min Exi Slots Evolved 2 | . . . 2 . . Power . | . . . . . . Propulsion 2 | . . . 2 . . Utility . | . . . . . . Weapon . | . . . . . . Parts Attached 46 | 4 8 2 25 1 6 Power 4 | . . 1 2 . 1 Engine 4 | . . 1 2 . 1 Core . | . . . . . . Reactor . | . . . . . . Propulsion 17 | 2 . . 13 . 2 Treads 16 | 2 . . 12 . 2 Leg 1 | . . . 1 . . Wheel . | . . . . . . Hover . | . . . . . . Flight . | . . . . . . Utility 7 | 1 1 . 4 . 1 Device 3 | 1 . . 2 . . Storage 1 | . 1 . . . . Processor . | . . . . . . Hackware . | . . . . . . Protection 3 | . . . 2 . 1 Artifact . | . . . . . . Weapon 18 | 1 7 1 6 1 2 Energy Gun 2 | . 1 . 1 . . Energy Cannon . | . . . . . . Ballistic Gun 11 | 1 3 1 4 . 2 Ballistic Cannon . | . . . . . . Launcher 4 | . 3 . . 1 . Special Weapon . | . . . . . . Impact Weapon 1 | . . . 1 . . Slashing Weapon . | . . . . . . Piercing Weapon . | . . . . . . Special Melee Weapon . | . . . . . . Unidentified Prototypes 1 | . . . 1 . . Parts Lost 19 | . 1 2 4 2 10 Power 2 | . . 1 . . 1 Propulsion 8 | . . . 2 2 4 Utility 3 | . 1 . . . 2 Weapon 6 | . . 1 2 . 3 Highest Loss Streak 10 | . 1 1 2 2 10 To Critical Strikes 8 | . . . . . 8 Average Slot Usage (%) 93 | . 93 84 98 97 84 Engine 12 | . 14 13 11 11 10 Treads 34 | . 28 28 42 41 33 Device 5 | . 7 . 7 11 6 Storage 12 | . 14 14 11 11 10 Protection 1 | . . . 3 . 2 Energy Gun 1 | . . . 2 . . Ballistic Gun 22 | . 22 27 19 20 12 Launcher 2 | . 5 . . 1 7 Naked Turns 9 | . . . . . 9 Heaviest Build 101 | 12 89 87 101 96 99 Greatest Support 89 | 40 40 40 89 89 86 Greatest Overweight (x) 32 | . 2 2 2 2 32 Average Overweight (x) 1 | . 1 2 1 1 1 Largest Inventory Capacity 25 | 8 25 25 25 25 25 Average Capacity 24 | 8 24 25 25 25 24 Most Carried 25 | 6 17 19 25 25 24 Average Carried 19 | 6 14 18 24 25 21 Final Capacity 25 | 8 25 25 25 25 5 Final Carried 25 | 6 17 19 25 25 5 Class Distribution -------------------- 87% | Mutant 12% | Scavenger-Mutant Dominant Class ---------------- Mutant | -10/Materials Mutant | -10/Mines Mutant | -9/Materials Mutant | -9/Mines Mutant | -9/Exiles Resources | -11 -10 -10 -9 -9 -9 ----------- Run | Yrd Mat Min Mat Min Exi Matter Collected 1273 | 247 220 77 704 8 17 Remotely . | . . . . . . Salvage Created 2274 | 24 308 170 1625 121 26 Parts 155 | 2 29 13 107 4 . Haulers Intercepted 7 | . 2 . 5 . . Recyclers Shooed 2 | . . . 2 . . Parts Field Recycled . | . . . . . . Retrieved Matter . | . . . . . . Parts Self-Destructed . | . . . . . . Prevented . | . . . . . . Kills | -11 -10 -10 -9 -9 -9 ------- Run | Yrd Mat Min Mat Min Exi Combat Hostiles Destroyed 66 | . 9 6 28 16 7 Guns 45 | . 4 6 28 6 1 AOE 21 | . 5 . . 10 6 Classes Destroyed 14 | 1 5 1 6 1 . Worker 6 | . 2 . 4 . . Builder 3 | . . 1 2 . . Tunneler 2 | 1 . . 1 . . Hauler 7 | . 2 . 5 . . Recycler 1 | . . . 1 . . Mechanic 1 | . . . 1 . . Operator 1 | . . . 1 . . Watcher 6 | . 3 . 3 . . Swarmer 22 | . 8 4 7 3 . Grunt 12 | . 1 2 9 . . Brawler 1 | . . . 1 . . Duelist 2 | . . . 2 . . Sentry 9 | . . . 9 . . Assembled 20 | . . . . 13 7 Best Kill Streak 13 | 1 3 3 5 13 7 Combat Bots Only 13 | . 3 3 4 13 7 Max Kills in Single Turn 5 | 1 3 1 1 5 3 Gunslinging . | . . . . . . Exploded 5 | . 2 . . 5 3 Melee . | . . . . . . Uniques/NPCs Destroyed . | . . . . . . Combat | -11 -10 -10 -9 -9 -9 -------- Run | Yrd Mat Min Mat Min Exi Hostile Shots Fired 350 | . 44 34 149 36 87 Missed 93 | . 15 6 32 12 28 Damage Taken 3494 | . 246 247 1400 420 1181 Core 471 | . 30 35 176 14 216 Absorbed by Shields . | . . . . . . Core Remaining (%) 87 | 100 . 74 . . . Volleys Fired 211 | 2 40 22 109 13 25 Largest 2 | 2 2 2 2 2 2 Hottest 98 | 40 40 40 98 46 56 Shots Fired 387 | 4 58 44 216 18 47 Gun 375 | 4 53 44 216 15 43 Cannon . | . . . . . . Launcher 12 | . 5 . . 3 4 Special . | . . . . . . Kinetic 337 | 4 53 44 178 15 43 Thermal 38 | . . . 38 . . Explosive 12 | . 5 . . 3 4 Electromagnetic . | . . . . . . Robot Hit Streak 21 | 4 9 6 21 6 7 Robot Miss Streak 5 | . 5 2 4 2 3 Penetration Max . | . . . . . . Secondary Targets 8 | . 1 1 6 . . Max Gunslinging Chain 1 | . 1 1 1 . . Shots Hit Robots 253 | 4 30 28 150 13 28 Core Hits 151 | 2 22 11 77 20 19 Critical Kills 1 | . 1 . . . . Critical Parts Destroyed 3 | . 1 . 2 . . Critical Strikes 8 | . 2 . 6 . . Burn 4 | . . . 4 . . Destroy 4 | . 2 . 2 . . Melee Attacks 1 | . . . 1 . . Impact 1 | . . . 1 . . Slashing . | . . . . . . Piercing . | . . . . . . Sneak Attacks . | . . . . . . Combat Hostiles . | . . . . . . Follow-up Attacks . | . . . . . . Damage Inflicted 4689 | 42 667 240 2206 769 765 Guns 3354 | 42 339 236 2183 181 373 Cannons . | . . . . . . Explosions 1296 | . 316 . . 588 392 Melee . | . . . . . . Ramming 39 | . 12 4 23 . . Kinetic 2727 | 42 339 236 1556 181 373 Thermal 627 | . . . 627 . . Explosive 1296 | . 316 . . 588 392 Electromagnetic . | . . . . . . Impact . | . . . . . . Slashing . | . . . . . . Piercing . | . . . . . . Highest Corruption 8 | . . . . 5 8 Average Corruption 5 | . . . . 5 6 Corruption Purged . | . . . . . . Corruption Blocked . | . . . . . . Effects 14 | . . . . 2 12 Message Errors 2 | . . . . . 2 Matter Fused 4 | . . . . 1 3 Heat Flow Errors 3 | . . . . . 3 Energy Discharges 3 | . . . . 1 2 Misfires 1 | . . . . . 1 Weapon Failures 1 | . . . . . 1 Overload Shots . | . . . . . . Overflow Damage 13 | . . . . 13 . Projectiles . | . . . . . . Explosions 13 | . . . . 13 . Melee . | . . . . . . Knockbacks . | . . . . . . Impact . | . . . . . . Kinetic . | . . . . . . Secondary . | . . . . . . Self-Inflicted Damage 123 | . . . . 46 77 Shots 3 | . . . . 1 2 Rammed 9 | . 2 2 5 . . Targets Rammed 9 | . 2 2 5 . . Kicked . | . . . . . . Crushed . | . . . . . . Highest Temperature 338 | . 6 24 338 19 227 Average Temperature 57 | . 6 12 58 12 80 Received Heat Transfer 599 | . 24 48 447 60 20 Effects 1 | . . . 1 . . Shutdowns 1 | . . . 1 . . Siege Activations . | . . . . . . Robots Corrupted . | . . . . . . Combat Hostiles . | . . . . . . Parts Fried . | . . . . . . Impact Corruptions . | . . . . . . Robots Melted . | . . . . . . Combat Hostiles . | . . . . . . Parts Melted 1 | . . . 1 . . Heat Transferred 1406 | . . . 1406 . . Parts Sabotaged . | . . . . . . Parts Stolen . | . . . . . . Parts Stripped . | . . . . . . Power Chain Reactions . | . . . . . . Alert | -11 -10 -10 -9 -9 -9 ------- Run | Yrd Mat Min Mat Min Exi Peak Influence 461 | 5 90 85 461 269 . Initial 156 | . 3 . . 156 . Average 139 | 3 27 28 300 242 . Maximum Alert Level 2 | . . . 2 1 . Low Security (%) 66 | 100 100 100 22 . . Level 1 26 | . . . 59 99 . Level 2 6 | . . . 18 . . Level 3 . | . . . . . . Level 4 . | . . . . . . Level 5 . | . . . . . . High Security . | . . . . . . Max Security . | . . . . . . Squads Dispatched 3 | . 1 . 2 . . Investigation 1 | . . . 1 . . Extermination . | . . . . . . Reinforcement 2 | . 1 . 1 . . Assault . | . . . . . . Garrison . | . . . . . . Intercept . | . . . . . . Searches Triggered . | . . . . . . Construction Impeded . | . . . . . . Haulers Reinforced . | . . . . . . Active Scanning Responses . | . . . . . . Cargo Convoy Interrupts . | . . . . . . Stealth | -11 -10 -10 -9 -9 -9 --------- Run | Yrd Mat Min Mat Min Exi Distress Signals 3 | . 1 . 2 . . Communications Jammed . | . . . . . . Distress Signals . | . . . . . . Times Spotted 102 | . 23 8 49 14 8 Peak Tracking Total 11 | . 4 3 4 11 10 Tactical Retreats 2 | . . . 1 1 . Traps | -11 -10 -10 -9 -9 -9 ------- Run | Yrd Mat Min Mat Min Exi Traps Triggered 2 | . . . 2 . . Indirectly . | . . . . . . Trap Hack Attempts . | . . . . . . Triggered . | . . . . . . Disarmed . | . . . . . . Reprogrammed . | . . . . . . Reused . | . . . . . . Traps Extracted . | . . . . . . Installed . | . . . . . . Triggered . | . . . . . . Machines | -11 -10 -10 -9 -9 -9 ---------- Run | Yrd Mat Min Mat Min Exi Machines Disabled 6 | . . 1 2 . 3 Max in Single Turn 1 | . . . 1 . 1 Machines Repaired . | . . . . . . Machines Dismantled . | . . . . . . Machines Sabotaged . | . . . . . . Overloaded Fab Kills . | . . . . . . Hacking | -11 -10 -10 -9 -9 -9 --------- Run | Yrd Mat Min Mat Min Exi Machines Accessed 20 | . 9 1 10 . . Terminals 17 | . 7 1 9 . . Fabricators . | . . . . . . Repair Stations 1 | . . . 1 . . Recycling Units 2 | . 2 . . . . Scanalyzers . | . . . . . . Garrison Access . | . . . . . . Total Hacks 45 | . 20 1 24 . . Successful 23 | . 16 . 7 . . Failed 22 | . 4 1 17 . . Catastrophic 5 | . . 1 4 . . Database Lockouts . | . . . . . . Manual 29 | . 11 . 18 . . Terminals 39 | . 16 1 22 . . Fabricators . | . . . . . . Repair Stations 2 | . . . 2 . . Recycling Units 4 | . 4 . . . . Scanalyzers . | . . . . . . Garrison Access . | . . . . . . Terminal Hacks 12 | . 9 . 3 . . Robot Analysis 1 | . 1 . . . . Prototype ID Bank 1 | . 1 . . . . Branch Access Points 1 | . 1 . . . . Terminal Index 2 | . 1 . 1 . . Alert Level 1 | . 1 . . . . Locate Traps 1 | . . . 1 . . Hauler Manifests 2 | . 1 . 1 . . Registered Components 1 | . 1 . . . . Registered Prototypes 1 | . 1 . . . . Zone Layout 1 | . 1 . . . . Fabricator Hacks . | . . . . . . Repair Station Hacks . | . . . . . . Recycling Unit Hacks 2 | . 2 . . . . Report Inventory 1 | . 1 . . . . Retrieve Matter 1 | . 1 . . . . Scanalyzer . | . . . . . . Garrison Access Hacks . | . . . . . . Unauthorized Hacks 9 | . 5 . 4 . . Terminals 6 | . 3 . 3 . . Botnet 4 | . 2 . 2 . . Operators 2 | . 1 . 1 . . Fabricators . | . . . . . . Repair Stations 1 | . . . 1 . . Mechanics 1 | . . . 1 . . Recycling Units 2 | . 2 . . . . Recyclers 2 | . 2 . . . . Scanalyzers . | . . . . . . Garrison Access . | . . . . . . Data Cores Recovered . | . . . . . . Used . | . . . . . . Hacking Detections 13 | . 6 1 6 . . Full Trace Events . | . . . . . . Feedback Events . | . . . . . . Feedback Blocked . | . . . . . . Robot Schematics Acquired . | . . . . . . Robots Built . | . . . . . . Authchips . | . . . . . . Time . | . . . . . . Total Robot Build Rating . | . . . . . . Part Schematics Acquired . | . . . . . . Parts Built . | . . . . . . Authchips . | . . . . . . Time . | . . . . . . Total Part Build Rating . | . . . . . . Parts Repaired . | . . . . . . Time . | . . . . . . Parts Recycled . | . . . . . . Recycled Matter . | . . . . . . Retrieved Matter 55 | . 55 . . . . Retrieved Components . | . . . . . . Parts Scanalyzed . | . . . . . . Part Schematics Acquired . | . . . . . . Parts Damaged . | . . . . . . Bothacking | -11 -10 -10 -9 -9 -9 ------------ Run | Yrd Mat Min Mat Min Exi Used RIF Installer . | . . . . . . Robots Hacked . | . . . . . . Non-combat . | . . . . . . Combat . | . . . . . . Robot Hacks Applied . | . . . . . . Relay Couplers Released . | . . . . . . Fabnet Peak Effective % . | . . . . . . Robots Rewired . | . . . . . . Allies Hacked . | . . . . . . Hacks Repelled . | . . . . . . Allies | -11 -10 -10 -9 -9 -9 -------- Run | Yrd Mat Min Mat Min Exi Total Allies 3 | . . 3 . . . Largest Group 3 | . . 3 . . . Highest-Rated Group 66 | . . 66 . . . Highest-Rated Ally 31 | . . 31 . . . Total Orders . | . . . . . . Ally Attacks 11 | . . 11 . . . Total Damage 84 | . . 84 . . . Kills 2 | . . 2 . . . Allies Corrupted . | . . . . . . Allies Melted . | . . . . . . Intel | -11 -10 -10 -9 -9 -9 ------- Run | Yrd Mat Min Mat Min Exi Robot Analysis Total 1 | . 1 . . . . Derelict Logs Recovered 1 | . . 1 . . . Drone Launches . | . . . . . . Drone Recoveries . | . . . . . . Exploration | -11 -10 -10 -9 -9 -9 ------------- Run | Yrd Mat Min Mat Min Exi Turns Passed 8823 | 80 2722 2109 3184 389 339 Spaces Moved 2845 | 43 805 635 1113 146 103 Core 21 | . . . . . 21 Treads 2824 | 43 805 635 1113 146 82 Legs . | . . . . . . Wheels . | . . . . . . Hover . | . . . . . . Flight . | . . . . . . Fastest Speed 50 | 160 160 320 240 240 50 Average Speed 278 | 160 314 320 240 246 245 Slowest Speed 1650 | 160 320 320 320 320 1650 Overloaded Moves . | . . . . . . Propulsion Burnouts . | . . . . . . Robots Hopped . | . . . . . . Cave-ins Triggered . | . . . . . . Exploration Rate (%) 64 | 3 97 98 95 54 39 Regions Visited 5 Branch Regions 3 Pre-discovered Areas 1 | . . 1 . . . Known Exits Taken 1 | . 1 . . . . Unknown Exits Taken 4 | 1 . 1 1 1 . Scrap Searched 1 | . . 1 . . . Spaces Dug 17 | . 16 . 1 . . Terrain Destroyed 67 | . 24 . 1 28 14 Melee 1 | . . . 1 . . Projectile . | . . . . . . AOE 66 | . 24 . . 28 14 Terrain Rammed . | . . . . . . Walls Destroyed . | . . . . . . Machines Disabled . | . . . . . . Actions | -11 -10 -10 -9 -9 -9 --------- Run | Yrd Mat Min Mat Min Exi Total 3376 | 49 936 672 1420 159 140 Wait 198 | 1 72 8 111 . 6 Move 2840 | 42 804 634 1112 145 103 Hop . | . . . . . . Pick Up 43 | . 10 4 29 . . Fast Attach 7 | 1 . . 6 . . Attach 11 | . . 2 5 . 4 Detach . | . . . . . . Swap 28 | 3 8 . 14 1 2 Drop 28 | . . . 28 . . Fire 211 | 2 40 22 109 13 25 Melee 1 | . . . 1 . . Ram . | . . . . . . Kick . | . . . . . . Crush 9 | . 2 2 5 . . Escape Stasis . | . . . . . . Rewire . | . . . . . . Trap . | . . . . . . Miscellaneous . | . . . . . . Route ------- -11/Scrapyard -10/Materials (discovered 4 exits: *Mat x3 / *Min) -10/Mines (discovered 2 exits: *Mat x2) -9/Materials (discovered 6 exits: [*Mat x3] / [*Min x2] / [*Sto]) -9/Mines (discovered 2 exits: [*Mat] / [*Exi]) -9/Exiles History --------- Turn | Location | Event 6 | -11/Scrapyard | Discovered new exit (range 3) 81 | -11/Scrapyard | Entered Materials 282 | -10/Materials | Discovered new exit (range 6) 302 | -10/Materials | Build established: Mutant 748 | -10/Materials | Discovered new exit (range 7) 773 | -10/Materials | Identified exit to Mines 1213 | -10/Materials | Discovered new exit (range 15) 2406 | -10/Materials | Discovered new exit (range 11) 2803 | -10/Materials | Entered Mines 3235 | -10/Mines | Learned location of Mines (-9) 3385 | -10/Mines | Received a Mining Laser from a helpful Derelict 3412 | -10/Mines | Discovered new exit (range 10) 3665 | -10/Mines | Discovered new exit (range 6) 4912 | -10/Mines | Entered Materials 4912 | -9/Materials | Evolved 2 slots: Propulsion x2 5498 | -9/Materials | Build established: Scavenger-Mutant 5808 | -9/Materials | Discovered new exit (range 12) 6052 | -9/Materials | Discovered new exit (range 8) 6415 | -9/Materials | Discovered new exit (range 12) 6617 | -9/Materials | Build established: Mutant 6887 | -9/Materials | Discovered new exit (range 13) 7131 | -9/Materials | Discovered new exit (range 9) 7641 | -9/Materials | Discovered new exit (range 7) 8096 | -9/Materials | Entered Mines 8150 | -9/Mines | Found a damaged Exp. Sensor Array with a note attached 8366 | -9/Mines | Discovered new exit (range 13) 8415 | -9/Mines | Assembled infested the area 8420 | -9/Mines | Assisted by a Guerilla fighting off Assembled 8472 | -9/Mines | Destroyed 13 combat bots 8472 | -9/Mines | Deemed a non-threat by the Exiles lab entrance 8472 | -9/Mines | Discovered new exit (range 5) 8485 | -9/Mines | Entered Exiles 8545 | -9/Exiles | Met 8R-AWN 8588 | -9/Exiles | Met EX-HEX 8653 | -9/Exiles | Met EX-BIN 8667 | -9/Exiles | Attacked by the Exiles 8683 | -9/Exiles | Core integrity fell below 50% 8719 | -9/Exiles | Destroyed 7 combat bots 8807 | -9/Exiles | Core integrity fell below 20% 8815 | -9/Exiles | Released all parts (1) 8824 | -9/Exiles | Destroyed by DAS Turret with DAS Cannon Last Messages --------------- 08797_ Penetrated by HV Slug. 08797_ Critical hit (Destroy). 08797_ Hvy. Assault Rifle destroyed. 08797_ HV Slug penetrates Earth. 08800_ Acquired 8 matter. 08801_ System corrupted: Heat flow error (+255). 08801_ Penetrated by HV Slug. 08801_ Critical hit (Destroy). 08801_ Hvy. Ion Engine destroyed. 08801_ HV Slug penetrates Earth. 08801_ Penetrated by HV Slug. 08801_ HV Slug penetrates Wall. 08806_ Penetrated by HV Slug. 08806_ HV Slug penetrates Wall. 08806_ Penetrated by HV Slug. 08806_ HV Slug penetrates Wall. 08814_ Penetrated by HV Slug. 08814_ HV Slug penetrates Wall. 08815_ Released Huge Storage Unit. 08818_ HV Slug penetrates Earth. Map ----- +----------------------------------------------------+ | ???????????????????????????? #??# # ????? | | ????????????????????????????## #### # ###??? | | ????????????????????????????## ####" """###??? | | ????????????????????????????## ### ""###?? | | ????????????????????????????## ## # #?? | | ???????????????????????????### ## " #?? | | ???????????????????????????### "#??? | | ???????????????????????????##" [! ##??? | | ???????????????????????????##" /]!* "##??? | | ???????????????????????????##" **!*= ""##??? | | ???????????????????????????##" /[!= """##??? | | ???????????????????????????##" *= """##??? | | ???????????????????????????##" """##??? | | ???????????????????????????## """""??? | | ???????????????????????????## """##??? | | ??????????????????????????#### X" """""??? | | ??????????????????????????# "" # ??? | | ???????????????????????????# """""""# ??? | | ??????????????????????????### %########### ??? | | ?????????????????????????#### " ############??? | | ??????????????????????######"" ###???????????? | | ???????????????????"###""""""" ####?########## | | ????????????? ?? """""" " "" ############## | | ???????????? "" """% " #####"""""""" | | ?????????? " " " """ "" | | ?????????? @ "" " | | ?????????? " | | ?????????? | | ??????????? | | ??????????? | | ???????????? """""" | | ???????????? ######""" | | ???????????? ""###########""" | | ????????????? """###???#######""" | | ????????????? """#??????????###"""" | | ?????????????? "?????????????##"" | | ?????????????? ????????????????#"""" | | ???????????????? ?????????????????? | | ???????????????????????????????????? | | ???????????????????????????????????? | | ???????????????????????????????????? | | ???????????????????????????????????? " | | ????????????????????????????????????? """ | | ???????????????????????????????????????" " ""#" | | ?????????????????????????????????????????" "?"##"" | | ?????????????????????????????????????????????##### | | ??????????????????????????????????????????????#### | | ?????????????????????????????????????????????????? | | ?????????????????????????????????????????????????? | | ?????????????????????????????????????????????????? | +----------------------------------------------------+ Best States ------------- Heat Dissipation 38 Energy Generation 14 Energy Capacity 280 Matter Stores 300 Matter Capacity 300 Sight Range 16 Terrain Scan Density 10 Armor Coverage 150 Evasion (%) 50 Recoil Reduction 4 Item Schematics ----------------- None Robot Schematics ------------------ None Fabricated ------------ Nothing Alien Tech Used ----------------- None Achievements -------------- None Challenges ------------ None Game ------ Seed HellfireTripodWarhead Manual? 0 Play Time 00:46:33 Cumulative 61.5 hours Start 2024.04.17 @ 13:27:26 End 2024.04.17 @ 14:37:23 Sessions 7 Manual Loads 0 Difficulty Rogue Special Mode None Game No. 92 Rogue 92 Adventurer 0 Explorer 0 Win Type - Total 1 Types 1/0/0/0/0/0/0/0/0 Lore% 27 Gallery% 32 Achievement% 32 Wizard Run 0 Options --------- Layout 0 ASCII 0 Keyboard 0 Movement Mouse Keybinds 0 Fullscreen 2 Font 18/X11Bold Map View 76x50 Zoom Use 0% Tactical HUD 1 Map Filters NONE Filters NONE Steam 1 RUN: 141cabab-588e-431e-8a0a-e83da5d1a175